bitfinex-derivatives/quotes_SOLF0:USTF0_20240930
["timestamp","ask_amount","ask_price","bid_price","bid_amount"]
[1727721362331,1.332,154.46,154.34,22.37]
[1727721362734,1.332,154.46,154.37,22.49502]
[1727721363030,1.3301,154.48,154.39,22.37]
[1727721363232,0.12502,154.49,154.39,22.37]
[1727721363429,3.36222,154.49,154.44,3.2382]
[1727721363629,0.12502,154.49,154.39,22.37]
[1727721364021,3.2377,154.47,154.43,3.2383]
[1727721364330,0.12502,154.49,154.39,22.37]
[1727721364834,3.2379,154.46,154.39,22.37]
[1727721365229,0.12502,154.49,154.38,7.00707256]
[1727721365533,0.12502,154.49,154.38,3.7868]
[1727721365729,3.2378,154.47,154.38,3.7868]
[1727721365931,3.2378,154.47,154.38,6.97817163]
[1727721366231,0.12502,154.49,154.4,22.37]
[1727721366426,0.12502,154.49,154.46,3.2378]
[1727721366729,0.12502,154.49,154.4,22.37]
[1727721366920,3.2378,154.47,154.43,3.2383]
[1727721367120,0.12502,154.49,154.43,3.2383]
[1727721367320,0.12502,154.49,154.41,3.2388]
[1727721368634,3.2382,154.45,154.41,3.2388]
[1727721369428,3.2382,154.45,154.42,3.2387]
[1727721369632,0.12502,154.49,154.38,3.7868]
[1727721369833,22.37,154.47,154.38,2.548]
[1727721370032,1.2628,154.46,154.38,1.2357]
[1727721370232,3.2385,154.44,154.38,1.2357]
[1727721370426,2.5988,154.46,154.38,1.2357]
[1727721371238,2.5988,154.46,154.39,3.2391]
[1727721371429,3.2384,154.44,154.38,1.2357]
[1727721371935,3.2387,154.43,154.4,3.2389]
[1727721372133,2.5988,154.46,154.38,1.2357]
[1727721372531,3.2387,154.42,154.39,3.2392]
[1727721373334,3.2391,154.4,154.37,3.36462]
[1727721373533,22.37,154.42,154.37,0.12502]
[1727721373733,14.01,154.39,154.37,0.12502]
[1727721374331,3.2395,154.38,154.37,0.12502]
[1727721381231,22.42,154.4,154.25,8.18615485]
[1727721381435,3.25826655,154.42,154.3,3.2411]
[1727721381436,3.2406,154.33,154.3,3.2411]
[1727721382538,23.6533,154.38,154.27,2.5346]
[1727721382841,3.24,154.36,154.27,2.5346]
[1727721383042,3.24,154.36,154.28,11.98695875]
[1727721383240,3.24,154.36,154.27,2.5346]
[1727721383441,1.2333,154.38,154.27,2.5346]
[1727721383641,22.42,154.37,154.28,7.4910076]
[1727721383842,22.42,154.37,154.27,2.5346]
[1727721384043,3.2408,154.32,154.27,2.5346]
[1727721385337,3.2406,154.33,154.27,2.5346]
[1727721385934,3.2406,154.33,154.3,3.2411]
[1727721386542,22.42,154.35,154.27,2.5346]
[1727721386742,3.2408,154.32,154.29,3.2413]
[1727721387538,23.6592,154.37,154.27,2.5346]
[1727721387741,1.2392,154.37,154.27,24.9546]
[1727721388242,1.2392,154.37,154.31,3.36592]
[1727721389347,3.2404,154.34,154.31,3.36592]
[1727721389738,1.2392,154.37,154.31,0.12502]
[1727721390747,1.3401,154.39,154.31,0.12502]
[1727721391450,4.5795,154.39,154.35,3.24]
[1727721391746,23.7736,154.42,154.31,0.12502]
[1727721392147,3.2393,154.39,154.31,0.12502]
[1727721393244,3.2393,154.39,154.35,3.24]
[1727721393645,3.2393,154.39,154.32,3.31206863]
[1727721393847,3.239,154.41,154.37,3.2396]
[1727721394044,23.7736,154.42,154.32,1.2843]
[1727721394239,23.7736,154.42,154.33,3.31433739]
[1727721394648,3.2393,154.4,154.36,3.2399]
[1727721395250,3.2393,154.39,154.36,3.2399]
[1727721396448,3.2393,154.39,154.32,4.5953963]
[1727721396449,0.12502,154.43,154.35,14.01]
[1727721397953,3.36352,154.43,154.39,3.2391]
[1727721398147,14.13502,154.43,154.33,16.5651]
[1727721399046,3.2389,154.41,154.33,16.5651]
[1727721399950,3.2388,154.42,154.38,3.2394]
[1727721401151,3.36352,154.43,154.4,3.239]
[1727721401549,0.12502,154.43,154.36,14.01]
[1727721402951,0.12502,154.43,154.39,3.2392]
[1727721403447,0.12502,154.43,154.4,3.239]
[1727721403448,3.36362,154.43,154.4,3.239]
[1727721403650,0.12502,154.43,154.36,14.01]
[1727721404058,0.12502,154.43,154.4,3.2389]
[1727721404252,0.12502,154.43,154.37,14.01]
[1727721404860,3.36352,154.43,154.37,14.01]
[1727721405158,0.12502,154.43,154.37,14.01]
[1727721405560,0.12502,154.43,154.41,3.2387]
[1727721405755,0.12502,154.43,154.38,1.3037]
[1727721406960,0.12502,154.43,154.41,3.2387]
[1727721407160,0.12502,154.43,154.38,1.3037]
[1727721408052,0.12502,154.43,154.41,3.2388]
[1727721410950,0.12502,154.43,154.38,1.3037]
[1727721412052,14.13502,154.43,154.33,86.5651]
[1727721412362,14.13502,154.43,154.34,7.48279776]
[1727721412561,3.2387,154.42,154.39,3.2392]
[1727721412759,14.13502,154.43,154.33,87.9244]
[1727721413161,14.13502,154.43,154.34,7.48267829]
[1727721413353,14.13502,154.43,154.33,87.9244]
[1727721413557,14.13502,154.43,154.34,7.48272032]
[1727721413757,14.13502,154.43,154.33,87.9244]
[1727721413954,14.13502,154.43,154.34,7.48276503]
[1727721414167,14.13502,154.43,154.33,87.9244]
[1727721414469,14.13502,154.43,154.37,3.2392]
[1727721414470,3.2387,154.41,154.37,3.2392]
[1727721414963,3.2387,154.41,154.33,87.9244]
[1727721415163,3.2384,154.42,154.33,87.9244]
[1727721415363,0.12502,154.43,154.35,14.01]
[1727721415560,0.12502,154.43,154.41,3.2385]
[1727721415760,0.12502,154.43,154.39,14.01]
[1727721415964,0.12502,154.43,154.41,14.01]
[1727721416166,0.12502,154.43,154.42,6.44974231]
[1727721416468,0.12502,154.49,154.42,3.21134231]
[1727721416674,0.12502,154.49,154.41,16.5911]
[1727721416675,0.12502,154.49,154.44,3.2377]
[1727721416969,0.12502,154.49,154.41,16.5911]
[1727721416970,3.2372,154.48,154.41,16.5911]
[1727721417168,3.2372,154.48,154.45,3.2377]
[1727721417558,0.12502,154.49,154.45,14.01]
[1727721417768,0.12502,154.49,154.48,3.2371]
[1727721418268,0.12502,154.49,154.47,14.01]
[1727721418458,0.12502,154.49,154.48,3.2371]
[1727721420670,0.12502,154.55,154.49,14.01]
[1727721421368,3.2364,154.54,154.49,17.247]
[1727721422265,3.2364,154.54,154.5,3.2369]
[1727721422866,3.2364,154.53,154.49,3.2372]
[1727721423971,3.2364,154.53,154.48,2.6092]
[1727721424570,0.12502,154.55,154.48,2.6092]
[1727721425162,3.2365,154.53,154.49,3.2372]
[1727721426074,3.36102,154.55,154.5,3.15754696]
[1727721426270,3.36102,154.55,154.48,2.6092]
[1727721426666,3.36102,154.55,154.49,3.18701136]
[1727721426875,3.36102,154.55,154.51,3.2367]
[1727721427467,3.36102,154.55,154.5,3.2368]
[1727721427674,0.12502,154.55,154.49,14.01]
[1727721428068,0.12502,154.55,154.52,3.2365]
[1727721428376,0.12502,154.55,154.49,17.32684896]
[1727721428980,0.12502,154.55,154.52,3.2365]
[1727721429979,3.2363,154.54,154.5,3.2369]
[1727721430280,3.2363,154.54,154.48,2.6092]
[1727721430883,3.36102,154.55,154.52,3.2366]
[1727721431474,0.12502,154.55,154.5,3.20958735]
[1727721431685,0.12502,154.55,154.54,3.2362]
[1727721432078,0.12502,154.55,154.54,17.2462]
[1727721433184,3.2349,154.6,154.57,3.2355]
[1727721434283,0.12502,154.61,154.57,14.01]
[1727721434481,0.12502,154.61,154.6,14.01]
[1727721434985,0.12502,154.61,154.6,17.2449]
[1727721435284,14.01,154.74,154.6,17.31703633]
[1727721435486,3.35732,154.73,154.66,3.2337]
[1727721435677,0.12502,154.73,154.67,14.01]
[1727721436078,0.12502,154.73,154.7,3.2328]
[1727721436279,0.12502,154.73,154.67,14.01]
[1727721436690,0.12502,154.73,154.7,3.2328]
[1727721436878,0.12502,154.73,154.67,14.01]
[1727721437081,0.12502,154.73,154.71,3.2326]
[1727721437281,0.12502,154.73,154.69,14.01]
[1727721437699,0.12502,154.79,154.72,14.01]
[1727721437990,0.12502,154.79,154.75,14.01]
[1727721438676,0.12502,154.79,154.77,3.2313]
[1727721439083,0.12502,154.79,154.75,14.01]
[1727721439685,0.12502,154.79,154.74,22.34]
[1727721439884,0.12502,154.79,154.76,3.2315]
[1727721440081,0.12502,154.79,154.74,22.34]
[1727721440389,0.12502,154.79,154.76,3.2315]
[1727721440587,0.12502,154.79,154.75,3.19652879]
[1727721441086,0.12502,154.79,154.76,3.2314]
[1727721441488,0.12502,154.79,154.77,3.2313]
[1727721441889,0.12502,154.79,154.75,3.19652879]
[1727721442187,0.12502,154.79,154.76,3.2315]
[1727721442489,0.12502,154.79,154.75,73.05652879]
[1727721442888,0.12502,154.79,154.77,3.2313]
[1727721443285,0.12502,154.79,154.75,73.05652879]
[1727721444483,0.12502,154.79,154.75,69.86]
[1727721447293,0.12502,154.79,154.72,22.34]
[1727721447794,3.35612,154.79,154.72,22.34]
[1727721448093,0.12502,154.79,154.72,22.34]
[1727721449392,3.35602,154.79,154.75,3.2316]
[1727721451696,0.12502,154.79,154.72,28.61]
[1727721451993,3.2315,154.77,154.72,28.61]
[1727721452193,0.12502,154.79,154.72,6.27]
[1727721452392,0.12502,154.79,154.72,5.0]
[1727721452700,22.46502,154.79,154.72,5.0]
[1727721452988,22.46502,154.79,154.72,8.2324]
[1727721453393,22.46502,154.79,154.72,5.0]
[1727721453594,0.12502,154.79,154.73,3.2322]
[1727721453795,0.12502,154.79,154.72,5.0]
[1727721454098,3.2314,154.77,154.74,3.2318]
[1727721454492,3.2314,154.77,154.72,5.0]
[1727721454493,3.2312,154.78,154.75,3.2317]
[1727721454994,3.2312,154.78,154.73,3.232]
[1727721455295,3.2312,154.78,154.72,5.0]
[1727721455496,0.12502,154.79,154.74,3.232]
[1727721455800,0.12502,154.79,154.72,27.34]
[1727721456098,3.35612,154.79,154.72,27.34]
[1727721456297,3.35612,154.79,154.75,3.2316]
[1727721456695,3.2313,154.78,154.72,27.34]
[1727721456904,0.12502,154.79,154.73,3.2321]
[1727721457095,0.12502,154.79,154.72,5.0]
[1727721457500,3.2315,154.77,154.74,3.2319]
[1727721457997,3.2319,154.75,154.72,8.2323]
[1727721458395,3.2319,154.75,154.72,5.0]
[1727721458591,0.12502,154.79,154.72,5.0]
[1727721458805,3.2321,154.74,154.72,5.0]
[1727721459300,3.2319,154.75,154.72,5.0]
[1727721459696,1.2784,154.78,154.73,3.2321]
[1727721459896,1.2784,154.78,154.72,5.0]
[1727721460301,3.2319,154.75,154.72,8.2323]
[1727721460803,1.2784,154.78,154.72,5.0]
[1727721461694,13.98,154.74,154.72,5.0]
[1727721461895,13.98,154.74,154.67,0.12502]
[1727721462101,3.2331,154.69,154.67,0.12502]
[1727721462295,13.98,154.71,154.67,0.12502]
[1727721462508,13.98,154.73,154.67,0.12502]
[1727721463409,3.2332,154.69,154.67,0.12502]
[1727721463900,3.2332,154.68,154.67,0.12502]
[1727721466599,15.2558,154.7,154.67,0.12502]
[1727721467310,3.2332,154.68,154.67,0.12502]
[1727721468100,3.2331,154.69,154.67,0.12502]
[1727721468606,3.2329,154.7,154.67,3.35832]
[1727721469103,3.233,154.69,154.67,0.12502]
[1727721469493,13.98,154.72,154.67,0.12502]
[1727721469694,3.2332,154.68,154.67,0.12502]
[1727721470405,3.2329,154.7,154.67,0.12502]
[1727721470608,13.98,154.74,154.67,0.12502]
[1727721470818,13.98,154.7,154.67,0.12502]
[1727721471401,3.2332,154.68,154.67,0.12502]
[1727721472807,17.2132,154.68,154.67,0.12502]
[1727721473304,3.2332,154.68,154.67,0.12502]
[1727721473510,3.2332,154.68,154.67,23.11772]
[1727721474504,3.2331,154.69,154.67,23.11772]
[1727721474818,13.98,154.73,154.67,23.11772]
[1727721475011,3.2332,154.68,154.67,23.11772]
[1727721475211,13.98,154.73,154.67,23.11772]
[1727721475714,3.2332,154.69,154.67,23.11772]
[1727721476010,13.98,154.73,154.67,26.35112]
[1727721476205,3.2329,154.7,154.67,26.35112]
[1727721476606,13.98,154.73,154.67,26.35112]
[1727721477112,3.2326,154.72,154.67,26.35112]
[1727721477315,13.98,154.73,154.67,26.35112]
[1727721477916,3.2331,154.69,154.67,26.35112]
[1727721478415,13.98,154.73,154.67,26.35112]
[1727721478615,3.2329,154.7,154.67,26.35112]
[1727721479817,3.2332,154.68,154.67,23.11772]
[1727721480816,13.98,154.71,154.67,23.11772]
[1727721481015,3.2329,154.7,154.67,23.11772]
[1727721481314,13.98,154.73,154.67,23.11772]
[1727721481515,3.2327,154.71,154.68,3.2331]
[1727721481712,3.2327,154.71,154.67,23.11772]
[1727721481919,13.98,154.73,154.67,23.11772]
[1727721482115,13.98,154.75,154.7,3.2328]
[1727721482622,3.2318,154.75,154.72,3.2324]
[1727721482823,15.2777,154.78,154.68,1.2965]
[1727721483322,13.98,154.75,154.68,1.2965]
[1727721483706,13.98,154.75,154.67,23.11772]
[1727721483911,3.2327,154.71,154.68,3.2331]
[1727721484712,13.98,154.75,154.67,23.11772]
[1727721485312,3.2325,154.72,154.69,3.2329]
[1727721487021,13.98,154.75,154.67,23.11772]
[1727721487216,13.98,154.74,154.67,23.11772]
[1727721487421,13.98,154.72,154.67,23.11772]
[1727721487622,3.2328,154.71,154.68,3.2332]
[1727721487823,13.98,154.74,154.67,23.11772]
[1727721488325,3.2329,154.7,154.67,23.11772]
[1727721489217,3.2329,154.7,154.68,3.2332]
[1727721489923,3.2326,154.72,154.68,3.2332]
[1727721490125,13.98,154.76,154.68,13.98]
[1727721490321,15.2777,154.78,154.68,13.98]
[1727721490524,3.2323,154.73,154.68,13.98]
[1727721490718,3.2323,154.73,154.7,3.2327]
[1727721492727,3.2325,154.72,154.7,3.2327]
[1727721493021,13.98,154.74,154.67,23.11772]
[1727721493225,13.98,154.72,154.67,23.11772]
[1727721493422,3.2331,154.69,154.67,23.11772]
[1727721493628,13.98,154.74,154.67,23.11772]
[1727721493815,3.2328,154.71,154.67,23.11772]
[1727721494017,3.2328,154.71,154.68,3.2331]
[1727721494513,3.233,154.7,154.67,26.35102]
[1727721495017,13.98,154.74,154.67,23.11772]
[1727721496226,3.2324,154.73,154.7,3.2328]
[1727721496423,13.98,154.74,154.67,23.11772]
[1727721496824,3.233,154.7,154.67,26.35112]
[1727721497526,17.25578518,154.72,154.67,23.11772]
[1727721497724,13.98,154.72,154.67,23.11772]
[1727721498526,3.2331,154.69,154.67,26.35112]
[1727721502551,3.2327,154.71,154.68,3.2332]
[1727721503839,3.2324,154.73,154.68,3.2332]
[1727721504040,13.98,154.74,154.69,3.233]
[1727721504246,13.98,154.74,154.67,23.11772]
[1727721505344,3.2332,154.69,154.67,26.35112]
[1727721506143,3.2326,154.72,154.69,3.233]
[1727721506341,13.98,154.74,154.67,23.11772]
[1727721506944,13.98,154.76,154.67,23.11772]
[1727721507349,3.2324,154.72,154.7,3.2326]
[1727721509448,13.98,154.74,154.67,23.11772]
[1727721510555,3.2329,154.7,154.68,3.2331]
[1727721510949,13.98,154.74,154.67,23.11772]
[1727721511148,13.98,154.74,154.69,3.233]
[1727721511853,13.98,154.76,154.67,37.09772]
[1727721512056,13.98,154.76,154.68,1.2889]
[1727721512354,13.98,154.78,154.68,1.2889]
[1727721512655,3.2322,154.74,154.71,3.2324]
[1727721512853,13.98,154.78,154.69,15.3391]
[1727721513050,13.98,154.78,154.7,1.2781]
[1727721513251,13.98,154.78,154.73,3.2321]
[1727721513453,0.12502,154.79,154.7,1.2781]
[1727721513658,0.12502,154.79,154.71,13.98]
[1727721513959,3.2313,154.78,154.71,13.98]
[1727721514455,3.2314,154.77,154.74,3.2318]
[1727721516249,3.2312,154.78,154.76,3.2316]
[1727721516452,0.12502,154.79,154.74,1.2862]
[1727721516854,3.35612,154.79,154.76,3.2315]
[1727721517448,3.35612,154.79,154.74,1.2862]
[1727721517449,0.12502,154.79,154.74,1.2862]
[1727721517654,0.12502,154.79,154.77,3.2313]
[1727721517954,0.12502,154.79,154.75,15.3022]
[1727721518356,0.12502,154.79,154.77,3.2312]
[1727721519855,0.12502,154.79,154.75,15.3022]
[1727721520061,0.12502,154.79,154.78,3.2311]
[1727721520266,13.98,154.86,154.77,13.98]
[1727721520457,13.98,154.86,154.78,3.231]
[1727721520657,3.2306,154.81,154.78,3.231]
[1727721521962,13.98,154.84,154.76,1.2942]
[1727721522356,3.2309,154.8,154.77,3.2312]
[1727721523155,3.231,154.79,154.76,4.5257]
[1727721523351,13.98,154.84,154.76,1.2942]
[1727721524264,3.231,154.79,154.77,3.2313]
[1727721524458,13.98,154.84,154.77,3.2313]
[1727721524764,13.98,154.86,154.77,13.98]
[1727721524966,3.2306,154.81,154.78,3.231]
[1727721525363,3.2306,154.81,154.77,13.98]
[1727721525665,3.2306,154.81,154.78,3.231]
[1727721525868,3.2304,154.82,154.77,13.98]
[1727721526161,3.2304,154.82,154.78,3.231]
[1727721526667,3.2305,154.81,154.78,3.231]
[1727721527668,13.98,154.86,154.77,3.2313]
[1727721528069,3.2309,154.8,154.77,3.2313]
[1727721529973,17.28589,154.88,154.75,4.5539]
[1727721529974,13.98,154.81,154.75,4.5539]
[1727721530267,13.98,154.81,154.74,1.2862]
[1727721530465,3.231,154.79,154.76,3.2314]
[1727721530868,3.231,154.79,154.74,1.2862]
[1727721530869,3.30589,154.88,154.78,13.98]
[1727721531171,3.2302,154.83,154.8,3.2306]
[1727721531368,17.28589,154.88,154.78,13.98]
[1727721531568,3.35482,154.85,154.8,13.98]
[1727721531768,3.35482,154.85,154.81,1.2426]
[1727721533476,3.35482,154.85,154.82,3.2302]
[1727721534475,3.2301,154.84,154.81,4.4731]
[1727721539073,3.2303,154.83,154.81,1.2426]
[1727721539471,0.12502,154.85,154.81,1.2426]
[1727721539681,0.12502,154.79,154.73,69.8]
[1727721540278,0.12502,154.79,154.73,83.78]
[1727721540771,0.12502,154.79,154.77,3.2312]
[1727721540971,0.12502,154.79,154.75,13.85498]
[1727721541676,0.12502,154.79,154.77,3.2312]
[1727721541877,0.12502,154.79,154.77,13.98]
[1727721542377,0.12502,154.79,154.78,3.2311]
[1727721543272,0.12502,154.79,154.73,69.8]
[1727721543673,0.12502,154.79,154.75,13.98]
[1727721543872,0.12502,154.79,154.76,3.2315]
[1727721544371,0.12502,154.79,154.75,13.98]
[1727721545182,0.12502,154.79,154.77,3.2312]
[1727721546685,0.12502,154.79,154.78,3.2311]
[1727721548779,0.12502,154.79,154.75,13.98]
[1727721548983,0.12502,154.79,154.74,3.9058]
[1727721549588,3.2312,154.78,154.75,3.2316]
[1727721549780,0.12502,154.79,154.74,3.9058]
[1727721550084,0.12502,154.79,154.74,2.5786]
[1727721550287,3.2312,154.78,154.75,3.2317]
[1727721554887,3.2315,154.77,154.74,5.8105]
[1727721555384,3.2315,154.77,154.75,3.2318]
[1727721556493,3.2315,154.77,154.74,4.5447]
[1727721556692,3.2317,154.76,154.72,15.2538]
[1727721557196,3.2317,154.76,154.73,3.2321]
[1727721557696,3.2319,154.75,154.72,4.5061]
[1727721557900,14.10502,154.79,154.7,1.2374]
[1727721558485,3.2315,154.77,154.71,3.2325]
[1727721558685,14.10502,154.79,154.71,3.2325]
[1727721559188,3.2321,154.74,154.71,3.2325]
[1727721560984,13.98,154.77,154.7,1.2374]
[1727721561190,3.2323,154.73,154.7,4.4701]
[1727721561496,13.98,154.77,154.7,4.4701]
[1727721561697,13.98,154.77,154.7,3.2327]
[1727721561998,3.2328,154.71,154.68,3.233]
[1727721562192,13.98,154.75,154.67,0.12502]
[1727721562591,3.233,154.7,154.67,3.35832]
[1727721562992,3.2332,154.69,154.67,0.12502]
[1727721563194,13.98,154.73,154.67,0.12502]
[1727721563593,13.98,154.75,154.67,0.12502]
[1727721564499,1.2586,154.76,154.67,0.12502]
[1727721564500,3.2324,154.73,154.67,0.12502]
[1727721564706,1.2586,154.76,154.67,0.12502]
[1727721565010,3.2324,154.72,154.69,3.2329]
[1727721565904,3.2324,154.72,154.67,0.12502]
[1727721566105,13.98,154.75,154.68,3.2331]
[1727721566106,3.2326,154.71,154.68,3.2331]
[1727721566309,13.98,154.75,154.67,0.12502]
[1727721566512,13.98,154.73,154.67,0.12502]
[1727721567909,13.98,154.73,154.68,3.2332]
[1727721568109,13.98,154.75,154.67,0.12502]
[1727721568311,3.2325,154.72,154.67,0.12502]
[1727721568708,13.98,154.75,154.69,3.2329]
[1727721569506,3.2327,154.71,154.69,3.2329]
[1727721569708,3.2327,154.71,154.68,3.2331]
[1727721572207,3.2328,154.7,154.68,3.2331]
[1727721573211,3.2327,154.71,154.68,3.2331]
[1727721574512,3.2328,154.7,154.68,3.2331]
[1727721574902,13.98,154.75,154.68,3.2331]
[1727721575110,1.2586,154.76,154.69,13.98]
[1727721575614,1.2586,154.76,154.71,3.2325]
[1727721575615,3.2322,154.74,154.71,3.2325]
[1727721580420,1.2586,154.76,154.69,13.98]
[1727721580922,3.2327,154.71,154.68,3.2331]
[1727721581322,13.98,154.75,154.67,14.10502]
[1727721581522,13.98,154.75,154.69,3.2328]
[1727721582123,3.2324,154.73,154.7,3.2328]
[1727721582314,13.98,154.75,154.7,3.2328]
[1727721582917,3.2325,154.72,154.7,3.2328]
[1727721583224,13.98,154.75,154.67,0.12502]
[1727721583522,1.2586,154.76,154.67,0.12502]
[1727721583523,3.233,154.7,154.67,0.12502]
[1727721583824,3.233,154.7,154.67,3.35832]
[1727721584422,3.2332,154.69,154.67,0.12502]
[1727721584919,13.98,154.73,154.67,0.12502]
[1727721586215,3.2326,154.72,154.67,0.12502]
[1727721586416,13.98,154.73,154.67,0.12502]
[1727721587018,3.2329,154.7,154.67,3.35842]
[1727721587719,3.2332,154.68,154.67,0.12502]
[1727721590715,1.2436,154.7,154.67,0.12502]
[1727721590928,1.2908,154.72,154.68,3.2331]
[1727721591724,3.2328,154.71,154.68,3.2331]
[1727721591917,1.2908,154.72,154.68,3.2331]
[1727721592321,3.2327,154.71,154.68,3.2331]
[1727721592728,13.98,154.76,154.67,0.12502]
[1727721593029,3.2323,154.73,154.7,3.2328]
[1727721594617,3.232,154.75,154.71,3.2324]
[1727721594819,3.8355,154.77,154.71,3.2324]
[1727721595419,3.2322,154.74,154.71,3.2324]
[1727721595630,3.8355,154.77,154.72,3.2323]
[1727721596128,3.232,154.75,154.72,3.2323]
[1727721596637,3.8355,154.77,154.67,14.10502]
[1727721596935,3.2321,154.74,154.71,3.2325]
[1727721600228,3.8355,154.77,154.69,13.98]
[1727721600434,0.12502,154.85,154.73,13.98]
[1727721600637,13.98,154.83,154.73,13.98]
[1727721600939,3.35612,154.79,154.76,3.2314]
[1727721601826,3.35612,154.79,154.76,12.1714]
[1727721603231,0.12502,154.79,154.78,3.2311]
[1727721603432,0.12502,154.79,154.76,8.94]
[1727721603831,0.12502,154.79,154.77,3.2313]
[1727721604837,3.35602,154.79,154.77,3.2313]
[1727721606033,0.12502,154.79,154.72,13.97]
[1727721606234,0.12502,154.79,154.69,1.2319]
[1727721606235,13.97,154.78,154.73,3.2321]
[1727721606536,13.97,154.78,154.69,15.2019]
[1727721606834,0.12502,154.79,154.73,13.97]
[1727721607035,0.12502,154.79,154.75,13.97]
[1727721608432,0.12502,154.79,154.77,3.2313]
[1727721609437,3.35602,154.79,154.77,3.2313]
[1727721609634,0.12502,154.79,154.78,3.2311]
[1727721611137,0.12502,154.79,154.75,1.2861]
[1727721611837,3.2313,154.78,154.75,4.5178]
[1727721612834,3.2313,154.78,154.69,71.0519]
[1727721612835,3.2318,154.75,154.72,3.2323]
[1727721613029,13.97,154.77,154.69,71.048]
[1727721613229,13.97,154.76,154.69,71.048]
[1727721613429,13.97,154.76,154.7,3.2327]
[1727721613430,3.2323,154.73,154.7,3.2327]
[1727721613736,17.1955965,154.76,154.69,71.048]
[1727721613932,13.97,154.74,154.67,0.12502]
[1727721614438,13.97,154.72,154.67,0.12502]
[1727721615338,17.1978594,154.74,154.67,0.12502]
[1727721615534,13.97,154.74,154.67,0.12502]
[1727721615739,13.97,154.76,154.67,0.12502]
[1727721615935,3.2323,154.73,154.69,3.233]
[1727721616134,17.14581279,154.76,154.67,0.12502]
[1727721616342,13.97,154.74,154.67,0.12502]
[1727721616645,3.20129636,154.73,154.67,0.12502]
[1727721617048,13.97,154.74,154.67,0.12502]
[1727721617732,17.20299236,154.75,154.67,0.12502]
[1727721617946,3.25757294,154.76,154.67,14.09502]
[1727721618157,3.2325,154.72,154.69,3.2329]
[1727721618641,3.25757294,154.76,154.67,14.09502]
[1727721618845,13.97,154.77,154.67,14.09502]
[1727721619040,13.97,154.77,154.67,0.12502]
[1727721619240,3.2321,154.74,154.69,3.233]
[1727721619447,3.24334208,154.76,154.69,3.233]
[1727721619935,3.24334208,154.76,154.67,0.12502]
[1727721619936,13.97,154.77,154.7,3.2328]
[1727721620140,2.5687,154.78,154.69,13.97]
[1727721620643,1.3073,154.78,154.71,13.97]
[1727721621051,3.2314,154.77,154.73,3.232]
[1727721621548,3.2314,154.77,154.71,13.97]
[1727721621749,0.12502,154.79,154.73,13.97]
[1727721622341,3.35602,154.79,154.73,13.97]
[1727721622943,3.2312,154.78,154.75,3.2316]
[1727721623545,0.12502,154.79,154.73,13.97]
[1727721623745,3.35602,154.79,154.76,3.2315]
[1727721627045,0.12502,154.79,154.74,3.20631355]
[1727721627246,0.12502,154.79,154.77,3.2312]
[1727721627455,0.12502,154.79,154.75,13.97]
[1727721627746,0.12502,154.79,154.78,3.2311]
[1727721628552,80.03056693,154.86,154.77,13.97]
[1727721628753,66.06056693,154.86,154.77,13.97]